[Event "*** Titled Tuesday Blitz"]
[Site "Chess.com"]
[Date "2021.04.27"]
[Round "4"]
[White "UKR_Master"]
[Black "ybruned"]
[Result "1/2-1/2"]
[WhiteElo "2481"]
[BlackElo "2362"]
[TimeControl "180+1"]
[EndTime "10:42:02 PDT"]
[Termination "Game drawn by repetition"]

1. e4 {[%clk 0:03:00.9]} 1... b6 {[%clk 0:03:00.6]} 2. d4 {[%clk 0:02:59.1]}
2... Bb7 {[%clk 0:03:00.7]} 3. Bd3 {[%clk 0:02:56.4]} 3... e6 {[%clk 0:03:00.8]}
4. f4 {[%clk 0:02:55.5]} 4... f5 {[%clk 0:02:58.3]} 5. Nd2 {[%clk 0:02:52.6]}
5... Nf6 {[%clk 0:02:52.5]} 6. Qe2 {[%clk 0:02:52.7]} 6... fxe4 {[%clk
0:02:41.6]} 7. Nxe4 {[%clk 0:02:53.6]} 7... Be7 {[%clk 0:02:11.4]} 8. Nf3 {[%clk
0:02:52.2]} 8... O-O {[%clk 0:02:10.5]} 9. Nxf6+ {[%clk 0:02:47]} 9... Bxf6
{[%clk 0:02:09.9]} 10. c3 {[%clk 0:02:47.3]} 10... Nc6 {[%clk 0:02:04.1]} 11.
O-O {[%clk 0:02:43.1]} 11... Ne7 {[%clk 0:02:03.4]} 12. Bd2 {[%clk 0:02:38]}
12... a6 {[%clk 0:01:46.9]} 13. Ng5 {[%clk 0:02:25.3]} 13... Bxg5 {[%clk
0:01:26.4]} 14. fxg5 {[%clk 0:02:26.2]} 14... g6 {[%clk 0:01:26.9]} 15. Bf4
{[%clk 0:02:07.9]} 15... Nd5 {[%clk 0:01:10.2]} 16. Bd2 {[%clk 0:02:04.8]} 16...
Qe7 {[%clk 0:00:56.9]} 17. Be4 {[%clk 0:01:54.1]} 17... b5 {[%clk 0:00:54.4]}
18. a4 {[%clk 0:01:50.9]} 18... Bc6 {[%clk 0:00:50.2]} 19. b3 {[%clk 0:01:45.6]}
19... Rxf1+ {[%clk 0:00:48.7]} 20. Rxf1 {[%clk 0:01:44.9]} 20... Rf8 {[%clk
0:00:45.8]} 21. Rxf8+ {[%clk 0:01:40.1]} 21... Qxf8 {[%clk 0:00:45.1]} 22. axb5
{[%clk 0:01:41]} 22... axb5 {[%clk 0:00:44.6]} 23. Bxd5 {[%clk 0:01:35.1]} 23...
Bxd5 {[%clk 0:00:31.8]} 24. Qxb5 {[%clk 0:01:30.5]} 24... Bc6 {[%clk 0:00:32.2]}
25. Qf1 {[%clk 0:01:24.2]} 25... Qxf1+ {[%clk 0:00:31.3]} 26. Kxf1 {[%clk
0:01:25.1]} 26... Bd5 {[%clk 0:00:30.7]} 27. c4 {[%clk 0:01:24.7]} 27... Be4
{[%clk 0:00:31.2]} 28. Kf2 {[%clk 0:01:12.5]} 28... Bc2 {[%clk 0:00:30.4]} 29.
b4 {[%clk 0:01:13.1]} 29... Bb3 {[%clk 0:00:30.9]} 30. c5 {[%clk 0:01:13.4]}
30... c6 {[%clk 0:00:31.5]} 31. Ke3 {[%clk 0:01:10.5]} 31... Kf7 {[%clk
0:00:32]} 32. Kf4 {[%clk 0:01:10.6]} 32... Bd5 {[%clk 0:00:30.6]} 33. g3 {[%clk
0:01:09.8]} 33... Ke7 {[%clk 0:00:30.7]} 34. Ke5 {[%clk 0:01:10.3]} 34... Bc4
{[%clk 0:00:30.2]} 35. Bf4 {[%clk 0:01:05.1]} 35... Bd5 {[%clk 0:00:29.3]} 36.
Be3 {[%clk 0:01:00.3]} 36... Bh1 {[%clk 0:00:28.2]} 37. Bd2 {[%clk 0:00:59.9]}
37... Bd5 {[%clk 0:00:27.8]} 38. Bf4 {[%clk 0:00:59.6]} 38... Bh1 {[%clk
0:00:27]} 39. Bd2 {[%clk 0:00:56.1]} 39... Bd5 {[%clk 0:00:26.6]} 40. Kf4 {[%clk
0:00:56.5]} 40... Bh1 {[%clk 0:00:26.1]} 41. Kg4 {[%clk 0:00:56.8]} 41... d6
{[%clk 0:00:24]} 42. Bf4 {[%clk 0:00:50.7]} 42... dxc5 {[%clk 0:00:24.2]} 43.
dxc5 {[%clk 0:00:51.3]} 43... Bd5 {[%clk 0:00:23.7]} 44. Bd6+ {[%clk 0:00:51.7]}
44... Kf7 {[%clk 0:00:23.8]} 45. Kf4 {[%clk 0:00:52.6]} 45... Bc4 {[%clk
0:00:24]} 46. Ke5 {[%clk 0:00:53.5]} 46... Bb5 {[%clk 0:00:24.5]} 47. Bc7 {[%clk
0:00:47.1]} 47... Ke7 {[%clk 0:00:24.5]} 48. Bd6+ {[%clk 0:00:46]} 48... Kf7
{[%clk 0:00:24.8]} 49. Kd4 {[%clk 0:00:43]} 49... Ke8 {[%clk 0:00:23.6]} 50. Be5
{[%clk 0:00:40.2]} 50... Ke7 {[%clk 0:00:23]} 51. Bf6+ {[%clk 0:00:40.4]} 51...
Kd7 {[%clk 0:00:21.8]} 52. Ke5 {[%clk 0:00:40.2]} 52... Ba4 {[%clk 0:00:22]} 53.
h4 {[%clk 0:00:36]} 53... Bb3 {[%clk 0:00:21.7]} 54. Bg7 {[%clk 0:00:29.5]}
54... Ke7 {[%clk 0:00:19.1]} 55. Bf6+ {[%clk 0:00:28.9]} 55... Kd7 {[%clk
0:00:19.6]} 56. Kd4 {[%clk 0:00:29.6]} 56... Ba4 {[%clk 0:00:18.3]} 57. Be5
{[%clk 0:00:29.8]} 57... Ke7 {[%clk 0:00:18.5]} 58. Ke4 {[%clk 0:00:29.2]} 58...
Bc2+ {[%clk 0:00:18.2]} 59. Kf4 {[%clk 0:00:29.6]} 59... Kf7 {[%clk 0:00:17.3]}
60. Bd6 {[%clk 0:00:30.5]} 60... Bd1 {[%clk 0:00:16.6]} 61. Ke5 {[%clk
0:00:30.3]} 61... Ba4 {[%clk 0:00:16.7]} 62. g4 {[%clk 0:00:26.5]} 62... Bb5
{[%clk 0:00:14.5]} 63. h5 {[%clk 0:00:26.4]} 63... Be2 {[%clk 0:00:13.4]} 64.
hxg6+ {[%clk 0:00:19.7]} 64... hxg6 {[%clk 0:00:14.3]} 65. Bc7 {[%clk
0:00:20.1]} 65... Ke7 {[%clk 0:00:14]} 66. Kf4 {[%clk 0:00:19.3]} 66... Bb5
{[%clk 0:00:12.8]} 67. Be5 {[%clk 0:00:20.2]} 67... Bc4 {[%clk 0:00:12.9]} 68.
Ke4 {[%clk 0:00:20.6]} 68... Bd5+ {[%clk 0:00:12.9]} 69. Kd4 {[%clk 0:00:20.1]}
69... Bf3 {[%clk 0:00:12.9]} 70. Bf6+ {[%clk 0:00:20.7]} 70... Kd7 {[%clk
0:00:12.8]} 71. Ke5 {[%clk 0:00:17.1]} 71... Bxg4 {[%clk 0:00:13.3]} 72. Bg7
{[%clk 0:00:16.9]} 72... Bf5 {[%clk 0:00:12.8]} 73. Kf6 {[%clk 0:00:17]} 73...
Bc2 {[%clk 0:00:13]} 74. Bf8 {[%clk 0:00:17.1]} 74... Bd3 {[%clk 0:00:13.4]} 75.
Bd6 {[%clk 0:00:17.4]} 75... Bc2 {[%clk 0:00:13.8]} 76. Kf7 {[%clk 0:00:16.5]}
76... Bd3 {[%clk 0:00:14]} 77. Kf6 {[%clk 0:00:16.5]} 77... Bc2 {[%clk
0:00:14.4]} 78. Be5 {[%clk 0:00:11.7]} 78... Bd3 {[%clk 0:00:14.8]} 79. Bc3
{[%clk 0:00:11.9]} 79... Bc2 {[%clk 0:00:15.3]} 80. Ke5 {[%clk 0:00:12.5]} 80...
Bd3 {[%clk 0:00:15.4]} 81. Bd2 {[%clk 0:00:13]} 81... Bc2 {[%clk 0:00:15.4]} 82.
Bf4 {[%clk 0:00:13.9]} 82... Bd3 {[%clk 0:00:15.3]} 83. Kd4 {[%clk 0:00:14.8]}
83... Be2 {[%clk 0:00:14.7]} 84. Be5 {[%clk 0:00:15.7]} 84... Bf1 {[%clk
0:00:14.9]} 85. Bf6 {[%clk 0:00:16.2]} 85... Bb5 {[%clk 0:00:14.9]} 86. Kc3
{[%clk 0:00:16.6]} 86... Bf1 {[%clk 0:00:14.9]} 87. Kb3 {[%clk 0:00:17.2]} 87...
Bb5 {[%clk 0:00:15.5]} 88. Ka3 {[%clk 0:00:17.2]} 88... Bf1 {[%clk 0:00:16.1]}
89. Ka4 {[%clk 0:00:17.6]} 89... Bb5+ {[%clk 0:00:16.6]} 90. Ka5 {[%clk
0:00:18.5]} 90... Bf1 {[%clk 0:00:16.3]} 91. Kb6 {[%clk 0:00:19.4]} 91... Be2
{[%clk 0:00:16.6]} 92. Be5 {[%clk 0:00:19.3]} 92... Bd3 {[%clk 0:00:17]} 93. Bd6
{[%clk 0:00:19.3]} 93... Bb5 {[%clk 0:00:17.6]} 94. Be5 {[%clk 0:00:19.3]} 94...
Bc4 {[%clk 0:00:18.3]} 95. Bf6 {[%clk 0:00:19.2]} 95... Bb5 {[%clk 0:00:19.2]}
96. Be5 {[%clk 0:00:19]} 96... Bc4 {[%clk 0:00:19.8]} 97. Ka7 {[%clk 0:00:15.6]}
97... Bb5 {[%clk 0:00:20.7]} 98. Kb7 {[%clk 0:00:16.5]} 98... Bc4 {[%clk
0:00:21]} 99. Kb6 {[%clk 0:00:17.4]} 99... Bb5 {[%clk 0:00:21.7]} 100. Ka5
{[%clk 0:00:18.3]} 100... Bc4 {[%clk 0:00:22]} 101. Ka4 {[%clk 0:00:19.1]}
101... Bb5+ {[%clk 0:00:22.3]} 102. Ka3 {[%clk 0:00:20]} 102... Bf1 {[%clk
0:00:22.9]} 103. Bf4 {[%clk 0:00:20.1]} 103... Bb5 {[%clk 0:00:23.4]} 104. Be5
{[%clk 0:00:20.4]} 104... Bd3 {[%clk 0:00:24]} 105. Kb2 {[%clk 0:00:20.5]}
105... Bb5 {[%clk 0:00:24.9]} 106. Bd4 {[%clk 0:00:21.4]} 106... Bc4 {[%clk
0:00:24.8]} 107. Be5 {[%clk 0:00:22.3]} 107... Bb5 {[%clk 0:00:25.3]} 108. Kc3
{[%clk 0:00:23.2]} 108... Bf1 {[%clk 0:00:25.3]} 109. Kd4 {[%clk 0:00:23.6]}
109... Bb5 {[%clk 0:00:25.4]} 110. Ke3 {[%clk 0:00:24.5]} 110... Bc4 {[%clk
0:00:25.7]} 111. Kf4 {[%clk 0:00:25.4]} 111... Bb5 {[%clk 0:00:26.2]} 112. Bd6
{[%clk 0:00:26.3]} 112... Bc4 {[%clk 0:00:26.6]} 113. Ke3 {[%clk 0:00:27]}
113... Bb5 {[%clk 0:00:26.8]} 114. Kd4 {[%clk 0:00:27.9]} 114... Be2 {[%clk
0:00:26.8]} 115. Ke5 {[%clk 0:00:28.4]} 115... Bb5 {[%clk 0:00:26.1]} 116. Kf4
{[%clk 0:00:28.3]} 116... Bd3 {[%clk 0:00:26.4]} 117. Ke3 {[%clk 0:00:29.2]}
117... Bb5 {[%clk 0:00:26.7]} 118. Kd4 {[%clk 0:00:30.1]} 118... Bf1 {[%clk
0:00:26.7]} 119. Ke5 {[%clk 0:00:31]} 119... Bd3 {[%clk 0:00:26.7]} 120. Kf6
{[%clk 0:00:31.9]} 1/2-1/2

[Event "*** Titled Tuesday Blitz"]
[Site "Chess.com"]
[Date "2021.04.27"]
[Round "5"]
[White "azikom"]
[Black "Alliswell998"]
[Result "1-0"]
[WhiteElo "2647"]
[BlackElo "2439"]
[TimeControl "180+1"]
[EndTime "10:51:51 PDT"]
[Termination "azikom won by resignation"]

1. d4 {[%clk 0:03:00]} 1... Nf6 {[%clk 0:02:59.9]} 2. Nf3 {[%clk 0:02:59.7]}
2... c5 {[%clk 0:02:59.5]} 3. d5 {[%clk 0:02:59.4]} 3... b5 {[%clk 0:02:59.2]}
4. Bg5 {[%clk 0:02:58.5]} 4... Qb6 {[%clk 0:02:58.5]} 5. c3 {[%clk 0:02:46.7]}
5... g6 {[%clk 0:02:56.1]} 6. Bxf6 {[%clk 0:02:31.3]} 6... Qxf6 {[%clk 0:02:57]}
7. e4 {[%clk 0:02:29.2]} 7... Qb6 {[%clk 0:02:57.5]} 8. Nbd2 {[%clk 0:02:26.2]}
8... Bg7 {[%clk 0:02:56.3]} 9. a4 {[%clk 0:02:25.4]} 9... b4 {[%clk 0:02:55.5]}
10. Nc4 {[%clk 0:02:23.9]} 10... Qd8 {[%clk 0:02:56]} 11. cxb4 {[%clk
0:02:21.1]} 11... cxb4 {[%clk 0:02:56.9]} 12. Be2 {[%clk 0:02:13.4]} 12... O-O
{[%clk 0:02:56.1]} 13. O-O {[%clk 0:02:13.6]} 13... d6 {[%clk 0:02:54.2]} 14.
Rc1 {[%clk 0:02:05.9]} 14... Nd7 {[%clk 0:02:54]} 15. Nd4 {[%clk 0:02:04.6]}
15... Nc5 {[%clk 0:02:48.2]} 16. Nc6 {[%clk 0:02:04.1]} 16... Qe8 {[%clk
0:02:38.5]} 17. e5 {[%clk 0:01:58.6]} 17... dxe5 {[%clk 0:02:27.2]} 18. N4xe5
{[%clk 0:01:57.2]} 18... Bb7 {[%clk 0:02:17.5]} 19. Rxc5 {[%clk 0:01:46]} 1-0

[Event "*** Titled Tuesday Blitz"]
[Site "Chess.com"]
[Date "2021.04.27"]
[Round "5"]
[White "Jospem"]
[Black "Zallio"]
[Result "1-0"]
[WhiteElo "2996"]
[BlackElo "2064"]
[TimeControl "180+1"]
[EndTime "10:52:26 PDT"]
[Termination "Jospem won by resignation"]

1. e4 {[%clk 0:03:00.9]} 1... e6 {[%clk 0:02:57.3]} 2. d4 {[%clk 0:03:00.7]}
2... d5 {[%clk 0:02:55.4]} 3. Nc3 {[%clk 0:03:01.2]} 3... Nf6 {[%clk 0:02:49.5]}
4. e5 {[%clk 0:03:00.8]} 4... Nfd7 {[%clk 0:02:49.7]} 5. Nce2 {[%clk 0:03:01.4]}
5... c5 {[%clk 0:02:49]} 6. c3 {[%clk 0:03:02.3]} 6... Nc6 {[%clk 0:02:49.3]} 7.
f4 {[%clk 0:03:01.8]} 7... Be7 {[%clk 0:02:49.1]} 8. Nf3 {[%clk 0:03:01.8]} 8...
O-O {[%clk 0:02:46.4]} 9. g3 {[%clk 0:03:01.2]} 9... f6 {[%clk 0:02:44.1]} 10.
Bh3 {[%clk 0:03:00.9]} 10... f5 {[%clk 0:02:43.9]} 11. O-O {[%clk 0:03:00.2]}
11... Qb6 {[%clk 0:02:42.9]} 12. Kh1 {[%clk 0:03:00.1]} 12... h6 {[%clk
0:02:39.8]} 13. g4 {[%clk 0:02:58.9]} 13... cxd4 {[%clk 0:02:29]} 14. cxd4
{[%clk 0:02:56]} 14... fxg4 {[%clk 0:02:22.2]} 15. Bxg4 {[%clk 0:02:56.9]} 15...
Qd8 {[%clk 0:02:14.9]} 16. Bxe6+ {[%clk 0:02:55.4]} 16... Kh8 {[%clk 0:02:12.5]}
17. f5 {[%clk 0:02:55.3]} 17... Qe8 {[%clk 0:02:06]} 18. Nf4 {[%clk 0:02:54.7]}
18... Nb6 {[%clk 0:01:56.5]} 19. Ng6+ {[%clk 0:02:54]} 19... Kh7 {[%clk
0:01:51.3]} 20. Nxf8+ {[%clk 0:02:53.6]} 20... Qxf8 {[%clk 0:01:51.3]} 21. Bxc8
{[%clk 0:02:54.5]} 21... Rxc8 {[%clk 0:01:50.2]} 22. f6 {[%clk 0:02:55.1]} 22...
gxf6 {[%clk 0:01:49.3]} 23. Nh4 {[%clk 0:02:49.1]} 23... Qg7 {[%clk 0:01:42.1]}
24. Rg1 {[%clk 0:02:40.4]} 24... Qf7 {[%clk 0:01:38.9]} 25. Qd3+ {[%clk
0:02:31.2]} 25... f5 {[%clk 0:01:33.6]} 26. Nxf5 {[%clk 0:02:30.7]} 26... Kh8
{[%clk 0:01:32.5]} 27. Bxh6 {[%clk 0:02:27.1]} 27... Rg8 {[%clk 0:01:26.9]} 28.
Rxg8+ {[%clk 0:02:22.1]} 1-0

[Event "*** Titled Tuesday Blitz"]
[Site "Chess.com"]
[Date "2021.04.27"]
[Round "5"]
[White "salomez"]
[Black "ChessAdvanceUSA"]
[Result "1/2-1/2"]
[WhiteElo "2122"]
[BlackElo "2308"]
[TimeControl "180+1"]
[EndTime "10:52:27 PDT"]
[Termination "Game drawn by agreement"]

1. e4 {[%clk 0:03:00.9]} 1... Nc6 {[%clk 0:02:59.5]} 2. d4 {[%clk 0:02:58]} 2...
d6 {[%clk 0:03:00.4]} 3. Nf3 {[%clk 0:02:56.7]} 3... Nf6 {[%clk 0:03:00.1]} 4.
Nc3 {[%clk 0:02:55.3]} 4... g6 {[%clk 0:02:59.9]} 5. Bc4 {[%clk 0:02:52.8]} 5...
Bg7 {[%clk 0:02:57.5]} 6. Qe2 {[%clk 0:02:52.4]} 6... Bg4 {[%clk 0:02:48.8]} 7.
Be3 {[%clk 0:02:43.3]} 7... e5 {[%clk 0:02:42.2]} 8. d5 {[%clk 0:02:40.1]} 8...
Ne7 {[%clk 0:01:59.8]} 9. h3 {[%clk 0:02:38.1]} 9... Bxf3 {[%clk 0:01:59.5]} 10.
Qxf3 {[%clk 0:02:39]} 10... O-O {[%clk 0:01:59.7]} 11. O-O-O {[%clk 0:02:38.2]}
11... a6 {[%clk 0:01:48.5]} 12. g4 {[%clk 0:02:37.2]} 12... b5 {[%clk
0:01:48.4]} 13. Bd3 {[%clk 0:02:35.8]} 13... c5 {[%clk 0:01:42.5]} 14. dxc6
{[%clk 0:02:34.3]} 14... Nxc6 {[%clk 0:01:40.9]} 15. g5 {[%clk 0:02:33.9]} 15...
Nh5 {[%clk 0:01:38.3]} 16. Nd5 {[%clk 0:02:33.8]} 16... Qa5 {[%clk 0:01:23.2]}
17. Kb1 {[%clk 0:02:32.5]} 17... Nb4 {[%clk 0:01:01]} 1/2-1/2

[Event "*** Titled Tuesday Blitz"]
[Site "Chess.com"]
[Date "2021.04.27"]
[Round "5"]
[White "ExtremeLearner"]
[Black "MVM2008"]
[Result "1-0"]
[WhiteElo "2418"]
[BlackElo "2257"]
[TimeControl "180+1"]
[EndTime "10:52:34 PDT"]
[Termination "ExtremeLearner won by resignation"]

1. d4 {[%clk 0:03:00.3]} 1... Nf6 {[%clk 0:02:54.7]} 2. c4 {[%clk 0:03:00.6]}
2... e6 {[%clk 0:02:46.7]} 3. g3 {[%clk 0:03:00]} 3... d5 {[%clk 0:02:46.1]} 4.
Bg2 {[%clk 0:03:00.1]} 4... Nc6 {[%clk 0:02:46.3]} 5. Nf3 {[%clk 0:02:59.7]}
5... Bb4+ {[%clk 0:02:43.7]} 6. Bd2 {[%clk 0:02:58.9]} 6... Bxd2+ {[%clk
0:02:42.5]} 7. Nbxd2 {[%clk 0:02:59]} 7... O-O {[%clk 0:02:43.4]} 8. O-O {[%clk
0:02:58.4]} 8... b6 {[%clk 0:02:43]} 9. Rc1 {[%clk 0:02:57.9]} 9... Bb7 {[%clk
0:02:42.7]} 10. Qc2 {[%clk 0:02:50.9]} 10... Rc8 {[%clk 0:02:32.1]} 11. Rfd1
{[%clk 0:02:45.2]} 11... Na5 {[%clk 0:02:11.5]} 12. b4 {[%clk 0:02:39.7]} 12...
Nxc4 {[%clk 0:02:10.1]} 13. Nxc4 {[%clk 0:02:36.2]} 13... dxc4 {[%clk 0:02:11]}
14. Qxc4 {[%clk 0:02:28.3]} 14... Bd5 {[%clk 0:02:09.8]} 15. Qa6 {[%clk
0:02:19.5]} 15... Qe7 {[%clk 0:02:08]} 16. b5 {[%clk 0:02:11.5]} 16... c5 {[%clk
0:02:04.8]} 17. bxc6 {[%clk 0:02:06.9]} 17... Bxc6 {[%clk 0:02:01]} 18. Ne5
{[%clk 0:02:03.9]} 18... Bxg2 {[%clk 0:01:58]} 19. Rxc8 {[%clk 0:02:01.8]} 19...
Bd5 {[%clk 0:01:49.3]} 20. Rxf8+ {[%clk 0:02:00.4]} 20... Qxf8 {[%clk
0:01:50.2]} 21. Rc1 {[%clk 0:01:52.6]} 21... Ne8 {[%clk 0:01:40.1]} 22. Qxa7
{[%clk 0:01:43.6]} 1-0

[Event "*** Titled Tuesday Blitz"]
[Site "Chess.com"]
[Date "2021.04.27"]
[Round "5"]
[White "PawnEatingZombie"]
[Black "UnknownxArmy"]
[Result "1-0"]
[WhiteElo "2255"]
[BlackElo "2365"]
[TimeControl "180+1"]
[EndTime "10:53:06 PDT"]
[Termination "PawnEatingZombie won by resignation"]

1. d4 {[%clk 0:03:00.9]} 1... Nf6 {[%clk 0:02:59.6]} 2. c4 {[%clk 0:03:00.8]}
2... e6 {[%clk 0:02:59.8]} 3. Nc3 {[%clk 0:03:01.3]} 3... Bb4 {[%clk 0:03:00.4]}
4. Qc2 {[%clk 0:03:01.7]} 4... O-O {[%clk 0:03:00.1]} 5. e4 {[%clk 0:03:01.3]}
5... d5 {[%clk 0:03:00.2]} 6. e5 {[%clk 0:03:00.3]} 6... Ne4 {[%clk 0:03:00.4]}
7. Bd3 {[%clk 0:02:59.7]} 7... c5 {[%clk 0:03:00.4]} 8. Nf3 {[%clk 0:03:00.3]}
8... cxd4 {[%clk 0:02:59.9]} 9. Nxd4 {[%clk 0:03:01.2]} 9... Nd7 {[%clk
0:03:00.3]} 10. Bf4 {[%clk 0:03:01.2]} 10... Qh4 {[%clk 0:03:00.3]} 11. g3
{[%clk 0:03:00.4]} 11... Qh5 {[%clk 0:03:00.4]} 12. h4 {[%clk 0:02:59.5]} 12...
Bxc3+ {[%clk 0:01:41.8]} 13. bxc3 {[%clk 0:02:56.8]} 13... Ndc5 {[%clk
0:01:40.1]} 14. Be2 {[%clk 0:02:39.4]} 14... Qg6 {[%clk 0:01:08.1]} 15. f3
{[%clk 0:02:12]} 15... Nxg3 {[%clk 0:00:38.2]} 16. Qxg6 {[%clk 0:02:09.9]} 16...
fxg6 {[%clk 0:00:38.6]} 17. Bxg3 {[%clk 0:02:09.6]} 17... dxc4 {[%clk
0:00:39.2]} 18. Bxc4 {[%clk 0:02:06.6]} 18... Rxf3 {[%clk 0:00:38.4]} 19. Nxf3
{[%clk 0:02:04.3]} 1-0

[Event "*** Titled Tuesday Blitz"]
[Site "Chess.com"]
[Date "2021.04.27"]
[Round "5"]
[White "andriipalchuk"]
[Black "dennisodessa"]
[Result "0-1"]
[WhiteElo "2573"]
[BlackElo "2440"]
[TimeControl "180+1"]
[EndTime "10:53:13 PDT"]
[Termination "dennisodessa won by resignation"]

1. e4 {[%clk 0:03:00.9]} 1... e6 {[%clk 0:03:00.2]} 2. d4 {[%clk 0:03:00.6]}
2... d5 {[%clk 0:03:00.8]} 3. Nd2 {[%clk 0:03:01.3]} 3... Nf6 {[%clk 0:03:00.8]}
4. e5 {[%clk 0:03:01.3]} 4... Nfd7 {[%clk 0:03:01.7]} 5. Ngf3 {[%clk 0:03:01.8]}
5... c5 {[%clk 0:03:02.6]} 6. c3 {[%clk 0:03:02.7]} 6... Nc6 {[%clk 0:03:02.8]}
7. Bd3 {[%clk 0:03:03.4]} 7... Qb6 {[%clk 0:03:03]} 8. O-O {[%clk 0:03:04.1]}
8... cxd4 {[%clk 0:03:03.9]} 9. cxd4 {[%clk 0:03:04.7]} 9... Nxd4 {[%clk
0:03:04.8]} 10. Nxd4 {[%clk 0:03:05.4]} 10... Qxd4 {[%clk 0:03:05.7]} 11. Nf3
{[%clk 0:03:06.1]} 11... Qb6 {[%clk 0:03:06.6]} 12. Qa4 {[%clk 0:03:06.8]} 12...
Qb4 {[%clk 0:03:07.3]} 13. Qc2 {[%clk 0:03:06.6]} 13... Qc5 {[%clk 0:03:08.2]}
14. Qe2 {[%clk 0:03:05.3]} 14... Qb6 {[%clk 0:03:08.7]} 15. h4 {[%clk
0:02:51.4]} 15... Nc5 {[%clk 0:03:01.6]} 16. Be3 {[%clk 0:02:50.9]} 16... Bd7
{[%clk 0:02:50.6]} 17. Rac1 {[%clk 0:02:45.5]} 17... Rc8 {[%clk 0:02:50.4]} 18.
Ng5 {[%clk 0:02:23.9]} 18... Be7 {[%clk 0:02:22.1]} 19. Nxh7 {[%clk 0:02:20.8]}
19... Qb4 {[%clk 0:02:06.7]} 20. g3 {[%clk 0:02:13.4]} 20... Nxd3 {[%clk
0:01:59.6]} 21. Rxc8+ {[%clk 0:02:12.5]} 21... Bxc8 {[%clk 0:02:00.5]} 22. Qxd3
{[%clk 0:02:13.1]} 22... Bxh4 {[%clk 0:01:47.4]} 23. gxh4 {[%clk 0:01:26.2]}
23... Qxh4 {[%clk 0:01:48.3]} 24. Qb5+ {[%clk 0:01:26.7]} 24... Bd7 {[%clk
0:01:47]} 25. Qxb7 {[%clk 0:01:09.2]} 25... Qg4+ {[%clk 0:01:45.4]} 0-1

[Event "*** Titled Tuesday Blitz"]
[Site "Chess.com"]
[Date "2021.04.27"]
[Round "5"]
[White "djano"]
[Black "OlegKrivonosov"]
[Result "1/2-1/2"]
[WhiteElo "2493"]
[BlackElo "2674"]
[TimeControl "180+1"]
[EndTime "10:53:16 PDT"]
[Termination "Game drawn by agreement"]

1. e4 {[%clk 0:03:00.9]} 1... e5 {[%clk 0:02:58.7]} 2. Nf3 {[%clk 0:03:00.5]}
2... Nc6 {[%clk 0:02:59.1]} 3. d4 {[%clk 0:03:00.3]} 3... exd4 {[%clk
0:02:58.5]} 4. Nxd4 {[%clk 0:03:01.2]} 4... Nf6 {[%clk 0:02:55.3]} 5. Nxc6
{[%clk 0:02:53.7]} 5... bxc6 {[%clk 0:02:55.6]} 6. Bd3 {[%clk 0:02:54.2]} 6...
d5 {[%clk 0:02:54.5]} 7. Nc3 {[%clk 0:02:50.4]} 7... Bb4 {[%clk 0:02:52.5]} 8.
exd5 {[%clk 0:02:45.8]} 8... cxd5 {[%clk 0:02:52.7]} 9. O-O {[%clk 0:02:42.9]}
9... O-O {[%clk 0:02:51.9]} 10. h3 {[%clk 0:02:42.9]} 10... c6 {[%clk
0:02:51.2]} 11. Qf3 {[%clk 0:02:41.1]} 11... Bd6 {[%clk 0:02:35.9]} 12. Bg5
{[%clk 0:02:35.1]} 12... h6 {[%clk 0:02:35.2]} 13. Bxf6 {[%clk 0:02:33.4]} 13...
Qxf6 {[%clk 0:02:35.5]} 14. Qxf6 {[%clk 0:02:33.5]} 14... gxf6 {[%clk
0:02:35.8]} 15. Ne2 {[%clk 0:02:27.4]} 15... Rb8 {[%clk 0:02:29.7]} 16. b3
{[%clk 0:02:27.2]} 16... Re8 {[%clk 0:02:23.3]} 17. Nd4 {[%clk 0:02:19.4]} 17...
Bd7 {[%clk 0:02:22.4]} 18. Nf5 {[%clk 0:02:17.8]} 18... Bf8 {[%clk 0:02:12.4]}
19. f4 {[%clk 0:02:09.7]} 19... Bxf5 {[%clk 0:02:01.9]} 20. Bxf5 {[%clk
0:02:10.6]} 20... Re2 {[%clk 0:01:52]} 21. Bd3 {[%clk 0:02:05.8]} 21... Bc5+
{[%clk 0:01:48.8]} 22. Kh1 {[%clk 0:02:02.9]} 22... Re3 {[%clk 0:01:48]} 23.
Rae1 {[%clk 0:01:58.9]} 23... Rbe8 {[%clk 0:01:47.3]} 24. Rxe3 {[%clk
0:01:58.8]} 24... Rxe3 {[%clk 0:01:47.5]} 25. Rf3 {[%clk 0:01:53.2]} 25... Rxf3
{[%clk 0:01:44.6]} 26. gxf3 {[%clk 0:01:54.1]} 26... Be3 {[%clk 0:01:40.1]} 27.
f5 {[%clk 0:01:54.1]} 27... Kf8 {[%clk 0:01:39.9]} 28. Kg2 {[%clk 0:01:52.8]}
28... Ke7 {[%clk 0:01:40.2]} 29. Kf1 {[%clk 0:01:49.5]} 29... Kd6 {[%clk
0:01:39.9]} 30. Ke2 {[%clk 0:01:50]} 30... Bf4 {[%clk 0:01:37.4]} 31. b4 {[%clk
0:01:42.9]} 31... c5 {[%clk 0:01:34.7]} 32. bxc5+ {[%clk 0:01:43.1]} 32... Kxc5
{[%clk 0:01:35]} 33. c3 {[%clk 0:01:41.2]} 1/2-1/2

[Event "*** Titled Tuesday Blitz"]
[Site "Chess.com"]
[Date "2021.04.27"]
[Round "5"]
[White "kakorrhaphiophobie"]
[Black "WiktoriaPOL"]
[Result "1-0"]
[WhiteElo "2308"]
[BlackElo "2040"]
[TimeControl "180+1"]
[EndTime "10:53:27 PDT"]
[Termination "kakorrhaphiophobie won by resignation"]

1. d4 {[%clk 0:03:00.9]} 1... d5 {[%clk 0:02:58.5]} 2. c4 {[%clk 0:02:59.6]}
2... e5 {[%clk 0:02:58]} 3. dxe5 {[%clk 0:02:58.6]} 3... d4 {[%clk 0:02:57.3]}
4. Nf3 {[%clk 0:02:59]} 4... Nc6 {[%clk 0:02:55.9]} 5. Nbd2 {[%clk 0:02:59.6]}
5... Nge7 {[%clk 0:02:54.3]} 6. Nb3 {[%clk 0:02:58.7]} 6... Ng6 {[%clk
0:02:54.2]} 7. Nbxd4 {[%clk 0:02:42.8]} 7... Bb4+ {[%clk 0:02:48.6]} 8. Bd2
{[%clk 0:02:38.2]} 8... Nxd4 {[%clk 0:02:42.8]} 9. Bxb4 {[%clk 0:02:27.8]} 9...
Nxf3+ {[%clk 0:02:39.3]} 10. exf3 {[%clk 0:02:12.9]} 10... Qxd1+ {[%clk
0:02:37.3]} 11. Rxd1 {[%clk 0:02:12.1]} 11... Nxe5 {[%clk 0:02:35.9]} 12. f4
{[%clk 0:02:06.1]} 12... Nc6 {[%clk 0:02:32.3]} 13. Ba3 {[%clk 0:02:00.3]} 13...
Bd7 {[%clk 0:02:27.1]} 14. Be2 {[%clk 0:01:52]} 14... O-O-O {[%clk 0:02:21.9]}
15. Bc5 {[%clk 0:01:48.5]} 15... b6 {[%clk 0:02:20.6]} 16. Be3 {[%clk
0:01:48.3]} 16... Rhe8 {[%clk 0:02:19.2]} 17. O-O {[%clk 0:01:39.2]} 17... Be6
{[%clk 0:02:16.1]} 18. b3 {[%clk 0:01:34]} 18... Ne7 {[%clk 0:02:09.2]} 19.
Rxd8+ {[%clk 0:01:28.5]} 19... Rxd8 {[%clk 0:02:07.5]} 20. Rd1 {[%clk 0:01:29]}
20... Rxd1+ {[%clk 0:02:04]} 21. Bxd1 {[%clk 0:01:29.9]} 21... Nf5 {[%clk
0:02:04]} 22. Bd2 {[%clk 0:01:26.7]} 22... Kd7 {[%clk 0:01:59.5]} 23. g4 {[%clk
0:01:22.8]} 23... Nd4 {[%clk 0:01:38.6]} 24. f5 {[%clk 0:01:20.2]} 24... Bxf5
{[%clk 0:01:33.9]} 25. gxf5 {[%clk 0:01:20]} 25... Nxf5 {[%clk 0:01:34.8]} 26.
Be3 {[%clk 0:01:18.4]} 26... Ke6 {[%clk 0:01:32.8]} 27. Bg4 {[%clk 0:01:18]}
27... Ke5 {[%clk 0:01:31.7]} 28. Bxf5 {[%clk 0:01:18.3]} 28... Kxf5 {[%clk
0:01:32.6]} 29. Kf1 {[%clk 0:01:18.3]} 29... Ke4 {[%clk 0:01:32.6]} 30. Ke2
{[%clk 0:01:18.6]} 1-0